bitfinex-derivatives/quotes_SOLF0:USTF0_20241229
["timestamp","ask_amount","ask_price","bid_price","bid_amount"]
[1735502494602,8.27156796,192.73,192.67,2.94]
[1735502495407,2.5995,192.72,192.69,2.5998]
[1735502497412,2.5996,192.71,192.68,2.6]
[1735502498909,10.87116796,192.71,192.68,2.6]
[1735502500504,10.87116796,192.71,192.64,8.27156796]
[1735502500807,10.87116796,192.71,192.67,2.6001]
[1735502501908,10.87146796,192.69,192.65,2.6003]
[1735502502204,10.87146796,192.69,192.64,2.94]
[1735502502410,10.87146796,192.69,192.65,2.6003]
[1735502503509,8.27156796,192.69,192.63,5.82667649]
[1735502503715,8.27156796,192.69,192.66,2.6002]
[1735502506306,12.03235314,192.76,192.63,2.88667649]
[1735502506512,8.27156796,192.65,192.63,2.88667649]
[1735502507018,8.27156796,192.65,192.62,2.94]
[1735502507412,8.27156796,192.65,192.62,5.5408]
[1735502507614,8.27156796,192.65,192.62,2.94]
[1735502507820,8.27156796,192.65,192.59,8.27156796]
[1735502508117,8.27156796,192.65,192.6,2.94]
[1735502508815,8.27156796,192.65,192.61,2.6009]
[1735502509013,8.27156796,192.65,192.6,2.94]
[1735502510015,8.27156796,192.65,192.61,2.94]
[1735502511017,8.27156796,192.65,192.58,8.27156796]
[1735502511018,8.27156796,192.63,192.57,42.52133361]
[1735502511415,8.27156796,192.63,192.57,45.46133361]
[1735502511718,8.27156796,192.61,192.57,45.46133361]
[1735502512417,8.27156796,192.61,192.58,2.6012]
[1735502517721,8.27156796,192.61,192.59,2.6012]
[1735502520925,8.27156796,192.61,192.52,2.85726016]
[1735502521119,8.27156796,192.58,192.54,2.94]
[1735502521324,8.27156796,192.58,192.52,2.85726016]
[1735502521626,8.27156796,192.56,192.54,2.6018]
[1735502522126,8.27156796,192.56,192.53,2.94]
[1735502522828,8.27156796,192.56,192.52,5.79726016]
[1735502523021,2.6015,192.57,192.47,40.27828871]
[1735502523022,8.27156796,192.54,192.5,2.6023]
[1735502523524,8.27156796,192.54,192.49,2.94]
[1735502524127,8.27156796,192.52,192.48,2.6026]
[1735502525224,8.27156796,192.52,192.49,2.6025]
[1735502525824,8.27156796,192.52,192.5,2.6024]
[1735502526221,8.27156796,192.52,192.4,54.08]
[1735502526422,8.27156796,192.49,192.42,8.27156796]
[1735502527422,8.27156796,192.49,192.48,2.6027]
[1735502528927,8.27156796,192.49,192.47,2.6028]
[1735502529325,8.27156796,192.49,192.4,54.08]
[1735502529525,8.27156796,192.47,192.41,2.94]
[1735502529727,8.27156796,192.45,192.41,2.94]
[1735502530629,8.27156796,192.45,192.43,2.6032]
[1735502531123,8.27156796,192.45,192.44,2.6032]
[1735502532630,8.27156796,192.45,192.25,34.12563333]
[1735502532829,2.94,192.49,192.25,34.12563333]
[1735502532830,8.27156796,192.41,192.35,8.27156796]
[1735502533727,8.27156796,192.41,192.39,2.6038]
[1735502534834,8.27156796,192.41,192.34,2.94]
[1735502535025,8.27156796,192.41,192.4,2.6038]
[1735502535229,8.27156796,192.41,192.36,2.94]
[1735502535730,2.6031,192.46,192.36,2.94]
[1735502536032,8.27156796,192.41,192.36,2.94]
[1735502537434,8.27156796,192.41,192.4,2.6038]
[1735502537936,8.27156796,192.41,192.29,8.27156796]
[1735502538236,8.27156796,192.35,192.27,4.518]
[1735502538436,8.27156796,192.35,192.33,2.6046]
[1735502539037,8.27156796,192.35,192.32,2.6048]
[1735502539236,8.27156796,192.33,192.32,2.6048]
[1735502540933,8.27156796,192.33,192.16,8.62045938]
[1735502541136,2.94,192.38,192.13,57.82806666]
[1735502541137,8.27156796,192.25,192.13,57.82806666]
[1735502541336,54.39881123,192.47,192.25,2.6058]
[1735502541537,54.39881123,192.47,192.27,8.27156796]
[1735502541838,8.27156796,192.33,192.28,2.6054]
[1735502542037,8.27156796,192.33,192.26,8.27156796]
[1735502542231,8.27156796,192.31,192.24,12.91376796]
[1735502543238,8.27156796,192.29,192.24,4.6422]
[1735502543743,2.94,192.35,192.22,8.27156796]
[1735502543744,8.27156796,192.27,192.22,2.6061]
[1735502544138,8.27156796,192.25,192.22,2.6061]
[1735502544340,8.27156796,192.26,192.22,2.6061]
[1735502544834,2.94,192.3,192.17,2.88848167]
[1735502544835,8.27156796,192.24,192.17,2.88848167]
[1735502545244,8.27156796,192.24,192.17,11.16004963]
[1735502545636,8.27156796,192.24,192.19,2.6066]
[1735502545941,8.27156796,192.24,192.17,2.88848167]
[1735502546144,8.27156796,192.24,192.19,2.6066]
[1735502546338,2.94,192.28,192.17,11.16004963]
[1735502546533,8.27156796,192.25,192.17,11.16004963]
[1735502547239,2.6055,192.28,192.18,2.94]
[1735502547439,8.27156796,192.25,192.18,2.94]
[1735502548446,8.27156796,192.25,192.22,2.6061]
[1735502549540,8.27156796,192.25,192.19,8.27156796]
[1735502549742,8.27156796,192.25,192.19,10.87806796]
[1735502549942,8.27156796,192.25,192.19,8.27156796]
[1735502550141,2.94,192.3,192.19,8.27156796]
[1735502550341,8.27156796,192.26,192.21,2.6062]
[1735502551136,3.0891,192.33,192.21,8.27156796]
[1735502551343,8.27156796,192.29,192.23,8.27156796]
[1735502551539,8.27156796,192.31,192.23,11.21156796]
[1735502551744,8.27156796,192.31,192.26,2.6055]
[1735502551944,8.27156796,192.29,192.23,11.21156796]
[1735502553236,8.27156796,192.29,192.25,2.6057]
[1735502554447,8.27156796,192.27,192.21,2.6062]
[1735502554641,8.27156796,192.27,192.2,5.9474]
[1735502555952,10.87716796,192.27,192.21,2.6063]
[1735502556447,2.6052,192.3,192.23,2.6059]
[1735502556648,1.5217,192.34,192.23,2.6059]
[1735502556649,8.27156796,192.28,192.23,2.6059]
[1735502556847,8.27156796,192.26,192.23,2.6059]
[1735502557442,3.04,192.33,192.23,2.6059]
[1735502557644,8.27156796,192.26,192.23,2.6059]
[1735502560441,8.27156796,192.26,192.22,2.6062]
[1735502560750,8.27156796,192.26,192.2,6.0474]
[1735502561451,10.87736796,192.26,192.21,2.6063]
[1735502561658,8.27156796,192.24,192.17,2.88848167]
[1735502561951,8.27156796,192.24,192.17,14.20004963]
[1735502562152,10.87756796,192.24,192.19,2.6065]
[1735502563248,2.6062,192.23,192.18,2.6067]
[1735502564257,8.27156796,192.22,192.16,2.6069]
[1735502564555,8.27156796,192.2,192.14,8.27156796]
[1735502565055,3.1331,192.26,192.14,8.27156796]
[1735502565250,8.27156796,192.22,192.14,8.27156796]
[1735502565450,8.27156796,192.22,192.14,11.31156796]
[1735502566056,10.87786796,192.22,192.16,2.607]
[1735502567050,2.6064,192.21,192.16,2.607]
[1735502568762,10.87726796,192.26,192.21,2.6063]
[1735502570154,2.6058,192.25,192.21,2.6063]
[1735502571052,10.87726796,192.26,192.21,2.6063]
[1735502571256,8.27156796,192.24,192.21,2.6063]
[1735502578263,1.4867,192.27,192.21,2.6063]
[1735502578570,8.27156796,192.32,192.26,2.6056]
[1735502579075,2.6051,192.31,192.26,2.6056]
[1735502579868,8.27156796,192.3,192.25,3.04]
[1735502581966,8.27156796,192.3,192.25,5.6458]
[1735502582265,8.27156796,192.3,192.25,3.04]
[1735502583063,2.6047,192.33,192.29,2.6052]
[1735502583269,8.27156796,192.32,192.25,3.04]
[1735502584462,8.27156796,192.32,192.28,2.6053]
[1735502584863,8.27156796,192.32,192.25,3.04]
[1735502585170,8.27156796,192.35,192.31,2.6049]
[1735502585376,8.27156796,192.35,192.3,3.02]
[1735502586462,8.27156796,192.35,192.32,2.6048]
[1735502586672,8.27156796,192.35,192.3,3.02]
[1735502587372,8.27156796,192.35,192.31,2.6049]
[1735502588763,8.27156796,192.33,192.28,2.6054]
[1735502588969,8.27156796,192.33,192.29,3.02]
[1735502590468,8.27156796,192.33,192.29,5.6252]
[1735502591975,8.27156796,192.33,192.3,2.6051]
[1735502594475,8.27156796,192.33,192.29,5.6252]
[1735502594976,8.27156796,192.33,192.3,2.6051]
[1735502595470,8.27156796,192.33,192.26,2.949]
[1735502595471,10.87636796,192.33,192.27,3.02]
[1735502595676,8.27156796,192.29,192.24,3.02]
[1735502595978,8.27156796,192.31,192.24,3.02]
[1735502596275,8.27156796,192.33,192.27,2.6054]
[1735502596475,8.27156796,192.33,192.24,11.29156796]
[1735502596677,2.6049,192.32,192.27,2.6055]
[1735502598979,2.605,192.31,192.27,2.6055]
[1735502599581,10.87656796,192.31,192.27,2.6055]
[1735502602282,2.6054,192.29,192.23,2.606]
[1735502602578,8.27156796,192.27,192.22,3.02]
[1735502603579,2.6058,192.26,192.22,5.6261]
[1735502603780,8.27156796,192.27,192.16,3.1108]
[1735502603977,8.27156796,192.27,192.19,8.27156796]
[1735502605583,2.606,192.24,192.2,2.6065]
[1735502608090,8.27156796,192.25,192.19,8.27156796]
[1735502608486,2.6056,192.27,192.22,2.6062]
[1735502608686,1.5326,192.3,192.23,8.27156796]
[1735502609089,9.75896796,192.31,192.23,8.27156796]
[1735502609384,9.75896796,192.31,192.22,3.02]
[1735502609588,9.75896796,192.31,192.23,8.27156796]
[1735502610084,2.6052,192.3,192.25,2.6057]
[1735502610484,10.87656796,192.31,192.26,2.6056]
[1735502611990,10.87636796,192.33,192.27,2.6055]
[1735502612487,8.27156796,192.33,192.27,2.6055]
[1735502612689,8.27156796,192.33,192.27,5.6255]
[1735502613485,2.6049,192.32,192.27,5.6255]
[1735502614393,1.4589,192.37,192.27,11.29156796]
[1735502614591,8.27156796,192.35,192.29,8.27156796]
[1735502614895,10.87576796,192.37,192.3,2.605]
[1735502615087,10.87576796,192.37,192.29,8.27156796]
[1735502615688,8.27156796,192.37,192.31,8.27156796]
[1735502615991,8.27156796,192.37,192.32,3.02]
[1735502616293,57.70909557,192.4,192.35,8.27156796]
[1735502616496,57.70909557,192.4,192.39,8.27156796]
[1735502616691,57.70909557,192.42,192.39,11.29156796]
[1735502617989,8.27156796,192.45,192.39,11.29156796]
[1735502618493,10.87466796,192.45,192.39,13.89546796]
[1735502619086,10.87466796,192.45,192.39,5.6239]
[1735502619293,1.5993,192.49,192.39,3.02]
[1735502619294,2.6035,192.42,192.39,3.02]
[1735502621294,10.87496796,192.43,192.39,3.02]
[1735502621790,10.87476796,192.45,192.4,2.6038]
[1735502622003,10.87476796,192.45,192.39,3.02]
[1735502622487,10.87476796,192.45,192.39,5.6239]
[1735502623799,2.6032,192.45,192.39,5.6239]
[1735502624000,8.27156796,192.44,192.39,5.6239]
[1735502624700,10.87486796,192.44,192.39,5.6239]
[1735502627597,2.6035,192.42,192.39,3.02]
[1735502627798,8.27156796,192.44,192.4,3.02]
[1735502628302,2.6036,192.42,192.4,3.02]
[1735502630403,8.27156796,192.42,192.24,2.78750496]
[1735502630603,8.27156796,192.36,192.28,8.27156796]
[1735502631102,10.87586796,192.36,192.31,2.6049]
[1735502631297,10.87586796,192.36,192.32,3.02]
[1735502633909,8.27156796,192.36,192.32,3.02]
[1735502634202,2.6045,192.35,192.32,3.02]
[1735502637004,10.87586796,192.36,192.32,3.02]
[1735502637198,8.27156796,192.39,192.32,11.29156796]
[1735502637914,2.604,192.38,192.34,2.6046]
[1735502638407,2.604,192.38,192.32,11.29156796]
[1735502638611,2.604,192.38,192.33,2.6047]
[1735502640213,2.604,192.38,192.34,2.6046]
[1735502641008,2.604,192.38,192.32,11.29156796]
[1735502641810,8.27156796,192.37,192.32,3.02]
[1735502642008,8.27156796,192.35,192.31,3.02]
[1735502642209,2.6047,192.34,192.3,3.02]
[1735502642915,8.27156796,192.35,192.26,8.27156796]
[1735502643112,8.27156796,192.35,192.25,4.7349]
[1735502643412,8.27156796,192.33,192.26,11.29156796]
[1735502644421,2.605,192.32,192.27,2.6055]
[1735502644720,8.27156796,192.33,192.27,2.6055]
[1735502645516,2.605,192.31,192.27,2.6055]
[1735502646313,2.605,192.31,192.28,3.04]
[1735502646915,2.6049,192.32,192.28,3.04]
[1735502649118,63.78079557,192.41,192.3,8.27156796]
[1735502649318,8.27156796,192.37,192.3,8.27156796]
[1735502649919,2.6045,192.35,192.31,2.605]
[1735502650829,2.6045,192.35,192.3,10.87666796]
[1735502651723,10.87606796,192.35,192.3,2.6051]
[1735502651923,8.27156796,192.33,192.28,3.04]
[1735502652519,2.6049,192.32,192.28,3.04]
[1735502653424,10.87636796,192.33,192.28,5.6453]
[1735502656027,6.0717,192.41,192.29,8.27156796]
[1735502656323,8.27156796,192.36,192.31,2.605]
[1735502656625,8.27156796,192.34,192.28,3.04]
[1735502657222,2.6049,192.32,192.28,11.31156796]
[1735502657421,72.63978247,192.41,192.28,11.31156796]
[1735502657727,10.87606796,192.36,192.31,2.605]
[1735502658129,8.27156796,192.36,192.31,2.605]
[1735502658427,2.6046,192.35,192.31,2.605]
[1735502658623,8.27156796,192.36,192.3,2.6051]
[1735502659430,2.6046,192.34,192.3,2.6051]
[1735502660321,2.6049,192.32,192.29,2.6052]
[1735502660515,8.27156796,192.34,192.28,3.04]
[1735502660731,8.27156796,192.3,192.24,5.82750496]
[1735502660922,2.6055,192.27,192.24,5.82750496]
[1735502661327,2.6055,192.27,192.24,3.04]
[1735502661722,2.6054,192.28,192.24,3.04]
[1735502664231,2.6054,192.28,192.23,10.87756796]
[1735502664528,2.6054,192.28,192.23,13.91756796]
[1735502664932,2.6055,192.27,192.23,13.91756796]
[1735502666225,8.27156796,192.3,192.16,4.5601]
[1735502666420,8.27156796,192.28,192.21,8.27156796]
[1735502667430,2.6057,192.26,192.21,8.27156796]
[1735502667931,2.6055,192.28,192.23,8.27156796]
[1735502668232,9.79776796,192.32,192.25,8.27156796]
[1735502668629,2.6053,192.29,192.25,8.27156796]
[1735502668831,8.27156796,192.3,192.24,2.6058]
[1735502669027,8.27156796,192.3,192.23,8.27156796]
[1735502669028,8.27156796,192.3,192.2,3.04]
[1735502669228,2.6055,192.27,192.22,2.6061]
[1735502669528,8.27156796,192.28,192.22,2.6061]
[1735502670030,2.6058,192.26,192.22,2.6061]
[1735502670232,8.27156796,192.28,192.21,10.87786796]
[1735502673334,2.6059,192.25,192.21,11.31156796]
[1735502673524,2.6059,192.25,192.21,3.04]
[1735502673932,2.6059,192.25,192.2,10.87796796]
[1735502674237,8.27156796,192.26,192.2,11.31156796]
[1735502674431,2.606,192.24,192.2,11.31156796]
[1735502675435,2.606,192.24,192.2,13.91796796]
[1735502676528,2.606,192.24,192.2,10.87796796]
[1735502677427,2.606,192.24,192.2,2.6064]
[1735502677632,2.606,192.24,192.2,10.87796796]
[1735502678535,2.606,192.24,192.2,2.6064]
[1735502680333,8.27156796,192.24,192.17,8.27156796]
[1735502681636,2.6062,192.22,192.18,2.6067]
[1735502688432,57.70909557,192.31,192.21,8.27156796]
[1735502688638,65.98066353,192.31,192.24,8.27156796]
[1735502689335,2.6051,192.3,192.25,2.6058]
[1735502689937,2.6053,192.29,192.24,2.6059]
[1735502691641,10.87686796,192.29,192.24,2.6059]
[1735502695337,8.27156796,192.29,192.22,11.29156796]
[1735502695542,3.2143,192.33,192.22,11.29156796]
[1735502695543,8.27156796,192.31,192.24,8.27156796]
[1735502695843,8.27156796,192.31,192.26,8.27156796]
[1735502696740,8.27156796,192.34,192.27,3.02]
[1735502697837,10.87616796,192.34,192.3,2.605]
[1735502698342,10.87616796,192.34,192.27,3.02]
[1735502698543,10.87616796,192.34,192.31,2.605]
[1735502699543,8.27156796,192.32,192.27,3.02]
[1735502699837,10.87666796,192.3,192.27,5.6255]
[1735502700044,8.27156796,192.3,192.24,11.43836796]
[1735502700342,8.27156796,192.3,192.26,2.6056]
[1735502701035,8.27156796,192.3,192.24,14.45836796]
[1735502701233,10.87676796,192.3,192.27,2.6055]
[1735502701834,1.5634,192.37,192.26,8.27156796]
[1735502702037,1.5634,192.37,192.28,8.27156796]
[1735502702239,8.27156796,192.35,192.29,3.02]
[1735502702439,8.27156796,192.35,192.31,2.605]
[1735502702646,8.27156796,192.35,192.29,3.02]
[1735502702846,50.76486815,192.38,192.29,3.02]
[1735502703139,8.27156796,192.35,192.29,3.02]
[1735502704647,8.27156796,192.35,192.31,2.6049]
[1735502704947,10.87606796,192.35,192.31,2.6049]
[1735502706952,53.36906815,192.38,192.33,2.6046]
[1735502707147,8.27156796,192.37,192.33,2.6046]
[1735502707749,8.27156796,192.37,192.3,8.27156796]
[1735502707946,2.6045,192.35,192.29,3.02]
[1735502708151,8.27156796,192.33,192.26,3.02]
[1735502709546,2.6049,192.32,192.27,2.6055]
[1735502710449,8.27156796,192.29,192.24,5.7726]
[1735502712951,8.27156796,192.29,192.24,11.43836796]
[1735502713152,8.27156796,192.29,192.25,2.6058]
[1735502713356,8.27156796,192.31,192.25,2.6058]
[1735502714058,2.605,192.31,192.25,2.6058]
[1735502714246,2.605,192.31,192.27,2.6055]
[1735502714247,8.27156796,192.31,192.27,2.6055]
[1735502714974,8.27156796,192.31,192.24,11.43836796]
[1735502714975,8.27156796,192.33,192.28,2.6054]
[1735502716460,10.87626796,192.33,192.28,2.6054]
[1735502718058,2.6044,192.36,192.3,2.6051]
[1735502718461,8.27156796,192.35,192.3,2.6051]
[1735502718661,8.27156796,192.35,192.31,2.6049]
[1735502719758,10.87606796,192.35,192.3,2.6051]
[1735502723963,2.6046,192.34,192.3,2.6051]
[1735502724559,2.6049,192.32,192.28,5.6254]
[1735502724962,8.27156796,192.33,192.28,3.02]
[1735502726366,2.605,192.31,192.28,3.02]
[1735502726765,8.27156796,192.33,192.26,2.6056]
[1735502727068,2.605,192.31,192.26,5.6256]
[1735502727365,8.27156796,192.31,192.26,3.02]
[1735502727570,2.6054,192.28,192.26,3.02]
[1735502728862,1.5726,192.35,192.26,3.02]
[1735502729067,2.605,192.31,192.26,2.6056]
[1735502729268,8.27156796,192.32,192.25,11.29156796]
[1735502730571,10.87646796,192.32,192.27,2.6055]
[1735502731278,2.605,192.31,192.26,2.6056]
[1735502732272,2.605,192.31,192.26,5.6256]
[1735502733876,2.605,192.31,192.26,3.02]
[1735502734067,2.605,192.31,192.27,2.6055]
[1735502734978,10.87646796,192.32,192.28,2.6054]
[1735502737283,8.27156796,192.32,192.28,2.6054]
[1735502739086,10.87616796,192.34,192.3,2.6051]
[1735502748895,10.87616796,192.34,192.29,3.0]
[1735502749096,10.87616796,192.34,192.29,5.6052]
[1735502750195,8.27156796,192.34,192.29,3.0]
[1735502750395,2.6049,192.32,192.29,3.0]
[1735502751089,66.5855547,192.38,192.29,3.0]
[1735502751298,66.5855547,192.38,192.3,8.27156796]
[1735502751299,8.27156796,192.37,192.3,8.27156796]
[1735502751595,8.27156796,192.37,192.3,10.87666796]
[1735502752194,2.6045,192.35,192.3,10.87666796]
[1735502753288,2.6045,192.35,192.31,2.6049]
[1735502754288,8.27156796,192.35,192.29,3.0]
[1735502754890,8.27156796,192.33,192.24,3.1668]
[1735502755102,8.27156796,192.33,192.27,3.0]
[1735502756389,2.605,192.32,192.27,5.6055]
[1735502757092,2.605,192.32,192.27,2.6055]
[1735502757397,2.605,192.32,192.27,5.6055]
[1735502759100,8.27156796,192.35,192.29,2.6053]
[1735502759390,8.27156796,192.36,192.29,8.27156796]
[1735502759588,2.6046,192.34,192.3,2.605]
[1735502759785,2.6046,192.34,192.29,8.27156796]
[1735502759987,10.87616796,192.34,192.29,8.27156796]
[1735502760190,10.87616796,192.34,192.29,2.6052]
[1735502760698,8.27156796,192.34,192.27,11.27156796]
[1735502762300,2.6049,192.32,192.27,13.87696796]
[1735502762696,2.6045,192.35,192.3,2.6051]
[1735502763419,57.22604546,192.39,192.29,8.27156796]
[1735502763600,57.22604546,192.39,192.33,8.27156796]
[1735502763799,65.49761342,192.41,192.35,8.27156796]
[1735502764002,65.49761342,192.41,192.36,3.0]
[1735502764392,8.27156796,192.39,192.36,3.0]
[1735502764598,57.22604546,192.41,192.36,3.0]
[1735502764900,8.27156796,192.39,192.36,3.0]
[1735502765899,10.87556796,192.39,192.36,3.0]
[1735502768100,8.27156796,192.41,192.36,3.0]
[1735502768503,8.27156796,192.39,192.36,3.0]
[1735502769107,1.5574,192.42,192.36,3.0]
[1735502769308,8.27156796,192.4,192.36,3.0]
[1735502769704,10.87546796,192.4,192.36,3.0]
[1735502770306,2.6035,192.42,192.38,2.604]
[1735502770607,2.6035,192.42,192.36,3.0]
[1735502770800,2.6039,192.39,192.36,3.0]
[1735502771500,8.27156796,192.39,192.36,3.0]
[1735502771706,2.6041,192.38,192.33,2.6046]
[1735502772907,60.34924546,192.47,192.32,3.0]
[1735502773104,8.27156796,192.39,192.32,3.0]
[1735502773306,8.27156796,192.39,192.33,8.27156796]
[1735502773505,8.27156796,192.39,192.35,2.6043]
[1735502774707,10.87526796,192.41,192.36,2.6043]
[1735502775814,8.27156796,192.41,192.36,3.0]
[1735502775999,51.15086808,192.46,192.36,3.0]
[1735502776000,8.27156796,192.39,192.36,3.0]
[1735502776203,8.27156796,192.37,192.32,3.0]
[1735502776506,8.27156796,192.37,192.31,8.27156796]
[1735502776507,8.27156796,192.35,192.27,8.27156796]
[1735502776702,3.0,192.42,192.28,3.0]
[1735502776703,8.27156796,192.33,192.28,3.0]
[1735502777101,8.27156796,192.33,192.27,3.0]
[1735502777506,60.22604546,192.42,192.27,3.0]
[1735502777710,8.27156796,192.33,192.27,3.0]
[1735502777909,8.27156796,192.33,192.27,11.27156796]
[1735502778414,8.27156796,192.33,192.29,2.6052]
[1735502780405,8.27156796,192.33,192.27,11.27156796]
[1735502780900,2.952,192.4,192.27,3.0]
[1735502780901,8.27156796,192.31,192.27,3.0]
[1735502781103,2.6051,192.3,192.25,13.87736796]
[1735502781707,2.6051,192.3,192.25,5.6058]
[1735502782609,8.27156796,192.27,192.2,56.70482284]
[1735502782804,8.27156796,192.27,192.21,11.27156796]
[1735502784409,10.87716796,192.27,192.21,13.87786796]
[1735502786012,10.87716796,192.27,192.21,10.87786796]
[1735502786311,10.87716796,192.27,192.21,13.87786796]
[1735502787305,10.87716796,192.27,192.21,10.87786796]
[1735502787509,10.87716796,192.27,192.21,13.87786796]
[1735502791011,8.27156796,192.27,192.21,13.87786796]
[1735502791314,8.27156796,192.27,192.21,11.27156796]
[1735502791819,2.6059,192.25,192.21,11.27156796]
[1735502793217,1.4799,192.31,192.21,13.87786796]
[1735502793412,8.27156796,192.28,192.21,13.87786796]
[1735502793716,2.6058,192.25,192.21,11.27156796]
[1735502793918,2.6058,192.25,192.21,8.27156796]
[1735502794417,2.6057,192.26,192.21,10.87786796]
[1735502798219,8.27156796,192.26,192.19,11.27156796]
[1735502798424,8.27156796,192.26,192.19,8.27156796]
[1735502798612,8.27156796,192.26,192.18,2.6067]
[1735502798613,8.27156796,192.24,192.18,2.6067]
[1735502798816,2.6062,192.23,192.18,2.6067]
[1735502799818,2.6064,192.21,192.14,3.0494]
[1735502800121,2.6064,192.21,192.16,11.27156796]
[1735502800925,2.606,192.24,192.18,10.87816796]
[1735502801122,8.27156796,192.24,192.18,10.87816796]
[1735502802231,2.6062,192.22,192.18,10.87816796]
[1735502804923,2.6062,192.22,192.18,2.6066]
[1735502805725,2.6064,192.21,192.17,2.6069]
[1735502807125,2.6064,192.21,192.16,11.27156796]
[1735502807323,2.6064,192.21,192.16,13.87856796]
[1735502808128,2.6064,192.21,192.16,11.27156796]
[1735502808327,2.6062,192.22,192.17,2.6069]
[1735502810326,2.6064,192.21,192.17,2.6069]
[1735502811733,8.27156796,192.24,192.19,2.6066]
[1735502813535,2.6061,192.23,192.19,2.6066]
[1735502815037,8.27156796,192.24,192.19,2.6066]
[1735502815232,2.6063,192.22,192.19,2.6066]
[1735502815735,2.6063,192.22,192.18,2.6067]
[1735502816038,8.27156796,192.24,192.18,2.6067]
[1735502816235,2.6064,192.21,192.18,2.6067]
[1735502817037,2.6063,192.22,192.19,2.6066]
[1735502817839,8.27156796,192.24,192.19,2.6066]
[1735502818038,2.6061,192.23,192.19,2.6066]
[1735502824751,8.27156796,192.22,192.17,3.0]
[1735502824953,8.27156796,192.22,192.14,3.0494]
[1735502826446,8.27156796,192.22,192.15,2.6072]
[1735502826447,2.6067,192.19,192.15,2.6072]
[1735502828250,8.27156796,192.22,192.15,8.27156796]
[1735502828462,2.6065,192.2,192.16,2.607]
[1735502834054,8.27156796,192.2,192.14,2.98]
[1735502834258,2.6067,192.19,192.15,2.6071]
[1735502836669,10.87836796,192.18,192.13,2.6073]
[1735502837263,2.607,192.17,192.11,8.27156796]
[1735502837456,2.607,192.17,192.11,11.25156796]
[1735502837854,2.607,192.17,192.13,2.6074]
[1735502838054,2.6072,192.16,192.11,8.27156796]
[1735502838461,10.43974102,192.23,192.14,2.6072]
[1735502838658,8.27156796,192.19,192.14,2.6072]
[1735502839567,8.27156796,192.19,192.11,8.27156796]
[1735502839769,8.27156796,192.17,192.11,8.27156796]
[1735502840264,10.87846796,192.17,192.13,2.6074]
[1735502840869,1.5615,192.23,192.13,2.6074]
[1735502840870,10.87836796,192.18,192.13,2.6074]
[1735502841072,8.27156796,192.16,192.13,2.6074]
[1735502841366,8.27156796,192.17,192.13,2.6074]
[1735502841758,2.6068,192.18,192.13,2.6074]
[1735502841957,8.27156796,192.18,192.14,2.6072]
[1735502842567,10.87846796,192.18,192.13,2.6074]
[1735502842867,8.27156796,192.18,192.13,2.6074]
[1735502843258,8.27156796,192.18,192.12,2.98]
[1735502843259,2.6072,192.15,192.1,2.6078]
[1735502843460,2.6072,192.15,192.08,1.5459]
[1735502843461,8.27156796,192.16,192.08,9.81746796]
[1735502844464,8.27156796,192.16,192.12,2.6076]
[1735502845471,8.27156796,192.14,192.12,2.6076]
[1735502847172,8.27156796,192.14,192.1,2.6078]
[1735502847373,57.22604546,192.22,192.03,23.67367741]
[1735502847374,8.27156796,192.11,192.03,21.21175939]
[1735502847565,8.27156796,192.07,192.03,21.21175939]
[1735502847765,8.27156796,192.05,192.03,21.21175939]
[1735502848064,2.6087,192.04,192.03,21.21175939]
[1735502848269,4.5362,192.17,192.03,21.21175939]
[1735502848470,8.27156796,192.08,192.03,21.21175939]
[1735502848970,8.27156796,192.08,192.04,2.6086]
[1735502849172,8.27156796,192.06,192.03,21.21175939]
[1735502849775,8.27156796,192.04,192.03,21.21175939]
[1735502850271,10.88026796,192.04,192.03,21.21175939]
[1735502851276,8.27156796,191.96,191.89,1.5464]
[1735502851472,8.27156796,191.96,191.91,2.6104]
[1735502851873,8.27156796,191.96,191.89,9.81796796]
[1735502852272,8.27156796,191.96,191.48,13.0813]
[1735502852273,10.88186796,191.92,191.82,31.9939508]
[1735502852476,8.27156796,191.92,191.84,8.27156796]
[1735502852877,8.27156796,191.92,191.85,2.6112]
[1735502853679,10.88186796,191.92,191.85,2.6112]